bitfinex/quotes_SOLUSD_20250107
["timestamp","ask_amount","ask_price","bid_price","bid_amount"]
[1736279017202,0.46390203,204.65,204.53,23.776884]
[1736279017404,0.46390203,204.65,204.53,23.10539576]
[1736279017606,0.46390203,204.65,204.5,0.12549]
[1736279017607,0.46390203,204.65,204.5,23.10539576]
[1736279017904,0.46390203,204.65,204.54,23.10539576]
[1736279018484,0.9096,204.66,204.55,23.776884]
[1736279018689,0.46390203,204.69,204.55,23.776884]
[1736279019806,0.9096,204.71,204.55,23.776884]
[1736279020107,0.46390203,204.7,204.57,23.776884]
[1736279021012,1.37350203,204.71,204.61,23.776884]
[1736279021186,0.9096,204.71,204.61,23.776884]
[1736279021385,0.9096,204.71,204.56,0.73296992]
[1736279021386,1.37350203,204.71,204.58,23.10539576]
[1736279022184,1.37350203,204.71,204.6,23.10539576]
[1736279022185,0.9096,204.71,204.6,23.10539576]
[1736279022477,1.37350203,204.71,204.6,23.10539576]
[1736279022677,1.37350203,204.71,204.58,23.10539576]
[1736279022882,20.0,204.68,204.54,23.10539576]
[1736279023102,20.0,204.68,204.57,23.10539576]
[1736279023298,0.9096,204.71,204.57,23.10539576]
[1736279023519,1.37350203,204.71,204.57,23.10539576]
[1736279023895,1.37350203,204.71,204.59,23.10539576]
[1736279024414,23.776884,204.7,204.57,23.10539576]
[1736279024582,23.776884,204.7,204.53,23.902374]
[1736279024583,20.0,204.68,204.55,23.10539576]
[1736279024784,20.0,204.68,204.56,23.10539576]
[1736279024984,20.0,204.68,204.57,23.10539576]
[1736279025203,20.0,204.68,204.58,23.10539576]
[1736279025412,0.9096,204.71,204.59,23.10539576]
[1736279025716,1.37350203,204.71,204.59,23.10539576]
[1736279025923,1.37350203,204.71,204.58,23.10539576]
[1736279026412,0.9096,204.71,204.59,23.10539576]
[1736279026713,0.9096,204.71,204.58,23.10539576]
[1736279027494,0.46390203,204.75,204.58,23.10539576]
[1736279028313,20.0,204.68,204.53,47.7407286]
[1736279028510,0.46390203,204.67,204.53,47.00776976]
[1736279028813,0.46390203,204.67,204.55,23.10539576]
[1736279029045,0.12549,204.66,204.53,23.10539576]
[1736279029222,0.12549,204.63,204.51,23.10539576]
[1736279029396,0.12549,204.63,204.53,23.10539576]
[1736279029712,0.12549,204.63,204.51,23.10539576]
[1736279029919,0.12549,204.63,204.52,23.10539576]
[1736279031731,20.0,204.65,204.53,23.10539576]
[1736279032221,20.0,204.65,204.52,23.10539576]
[1736279032408,20.0,204.65,204.53,23.10539576]
[1736279032608,0.12549,204.64,204.55,23.10539576]
[1736279032813,0.12549,204.64,204.57,23.10539576]
[1736279033223,0.46390203,204.72,204.59,23.10539576]
[1736279033224,20.0,204.7,204.59,23.10539576]
[1736279033422,50.86311804,204.73,204.62,23.10539576]
[1736279033627,0.12549,204.72,204.62,23.10539576]
[1736279033804,0.12549,204.72,204.61,23.10539576]
[1736279034004,1.37350203,204.83,204.71,23.10539576]
[1736279034203,1.37350203,204.83,204.73,23.10539576]
[1736279034425,0.9096,204.83,204.74,23.10539576]
[1736279034628,0.12549,204.82,204.73,23.10539576]
[1736279034816,0.9096,204.83,204.73,23.10539576]
[1736279035127,0.12549,204.82,204.72,23.10539576]
[1736279035327,0.9096,204.83,204.72,23.10539576]
[1736279035628,20.0,204.83,204.73,23.10539576]
[1736279035803,0.12549,204.83,204.73,23.10539576]
[1736279036426,23.902374,204.88,204.73,23.10539576]
[1736279036608,0.12549,204.86,204.73,23.10539576]
[1736279036812,0.12549,204.86,204.74,23.10539576]
[1736279037108,0.12549,204.86,204.73,23.10539576]
[1736279037346,0.46390203,204.87,204.78,23.10539576]
[1736279037506,0.46390203,204.98,204.84,23.10539576]
[1736279037819,0.46390203,204.96,204.82,23.10539576]
[1736279038021,20.0,204.94,204.82,23.10539576]
[1736279038216,0.46390203,204.96,204.84,47.00776976]
[1736279038429,15.01201884,204.99,204.84,47.00776976]
[1736279038430,0.46390203,204.98,204.84,47.00776976]
[1736279038925,0.46390203,204.98,204.85,23.10539576]
[1736279038926,0.12549,204.96,204.85,23.10539576]
[1736279039126,0.12549,204.96,204.86,23.10539576]
[1736279039308,0.12549,204.96,204.87,23.83728242]
[1736279039513,0.12549,204.99,204.86,23.10539576]
[1736279039910,0.12549,204.99,204.87,23.10539576]
[1736279040536,0.12549,204.99,204.88,23.10539576]
[1736279040831,0.12549,204.99,204.87,23.10539576]
[1736279041035,0.12549,204.99,204.89,23.10539576]
[1736279041407,0.12549,204.99,204.88,23.10539576]
[1736279041720,0.12549,204.99,204.87,23.83721892]
[1736279042119,0.12549,204.99,204.88,23.10539576]
[1736279042427,0.58939203,204.99,204.86,23.10539576]
[1736279042813,0.12549,204.94,204.81,0.73192428]
[1736279043019,0.58939203,204.94,204.8,23.10539576]
[1736279043435,0.58939203,204.94,204.79,23.10539576]
[1736279043645,0.58939203,204.94,204.8,23.83749858]
[1736279043855,0.58939203,204.94,204.83,23.10539576]
[1736279044014,0.12549,204.94,204.83,23.10539576]
[1736279044353,0.58939203,204.94,204.81,23.10539576]
[1736279044835,0.58939203,204.94,204.8,23.83745807]
[1736279045212,0.58939203,204.94,204.8,0.73206231]
[1736279046428,0.12549,204.89,204.77,0.73212908]
[1736279046617,0.58939203,204.89,204.77,0.73212908]
[1736279046816,0.58939203,204.89,204.78,23.10539576]
[1736279047013,0.12549,204.89,204.78,23.10539576]
[1736279047428,0.12549,204.87,204.76,23.10539576]
[1736279047625,0.12549,204.87,204.77,23.83764987]
[1736279048419,0.58939203,204.89,204.78,23.10539576]
[1736279048641,0.58939203,204.89,204.78,23.8375993]
[1736279048943,0.58939203,204.89,204.78,0.73220354]
[1736279049239,1.03509,204.87,204.73,23.10539576]
[1736279049434,0.12549,204.82,204.72,23.10539576]
[1736279049814,0.12549,204.82,204.75,23.902374]
[1736279050015,0.9096,204.92,204.79,23.10539576]
[1736279050219,0.9096,204.92,204.82,23.10539576]
[1736279050630,0.12549,204.91,204.82,23.10539576]
[1736279051211,0.12549,204.91,204.83,23.10539576]
[1736279051417,0.12549,204.91,204.81,23.10539576]
[1736279051817,0.12549,204.91,204.8,23.10539576]
[1736279052041,0.58939203,204.91,204.8,23.10539576]
[1736279052237,0.58939203,204.91,204.78,0.7321204]
[1736279052547,0.58939203,204.91,204.78,23.83751616]
[1736279052835,0.12549,204.91,204.8,23.10539576]
[1736279053028,0.46390203,204.9,204.78,23.83750886]
[1736279053226,0.12549,204.89,204.78,23.83750886]
[1736279053431,0.12549,204.89,204.83,23.10539576]
[1736279053631,0.9096,204.99,204.86,23.10539576]
[1736279053839,0.9096,204.99,204.87,23.10539576]
[1736279054423,20.9096,204.99,204.88,23.10539576]
[1736279054643,0.9096,204.99,204.88,23.10539576]
[1736279054959,0.12549,205.0,204.89,23.10539576]
[1736279055563,0.58939203,205.0,204.87,23.10539576]
[1736279055737,0.12549,205.03,204.87,23.10539576]
[1736279055938,23.902374,205.01,204.85,23.10539576]
[1736279056145,0.46390203,205.0,204.85,23.10539576]
[1736279056358,0.46390203,205.04,204.92,23.10539576]
[1736279056660,0.12549,205.03,204.92,23.10539576]
[1736279056856,0.12549,205.03,204.91,23.10539576]
[1736279057051,0.12549,205.03,204.88,0.73170094]
[1736279057232,0.12549,205.03,204.87,23.902374]
[1736279057233,0.12549,205.03,204.86,23.10539576]
[1736279057418,20.0,205.0,204.82,29.71559576]
[1736279057625,20.0,205.0,204.86,23.10539576]
[1736279058161,0.58939203,204.99,204.86,23.10539576]
[1736279058363,0.12549,204.99,204.87,23.10539576]
[1736279058575,0.12549,204.99,204.88,23.83722402]
[1736279058857,20.0,205.02,204.88,23.83722402]
[1736279059090,0.46390203,205.01,204.88,23.83722402]
[1736279059218,0.12549,205.01,204.89,23.10539576]
[1736279059570,20.12549,205.01,204.89,23.83713626]
[1736279059924,23.776884,205.04,204.91,23.10539576]
[1736279060126,0.12549,205.04,204.92,23.83706676]
[1736279060427,0.12549,205.0,204.87,23.83706808]
[1736279060644,0.58939203,205.0,204.87,0.73167232]
[1736279061170,0.58939203,205.0,204.87,23.83706808]
[1736279061368,20.0,204.97,204.87,0.73167232]
[1736279061522,0.12549,204.93,204.86,23.10539576]
[1736279061727,0.12549,204.93,204.85,23.83728105]
[1736279062025,0.12549,204.93,204.86,23.10539576]
[1736279062667,0.12549,204.96,204.86,23.83728103]
[1736279063967,1.99941467,205.05,204.89,23.10539576]
[1736279064166,0.46390203,205.05,204.91,23.10539576]
[1736279064365,20.0,205.03,204.91,23.10539576]
[1736279064667,20.0,205.03,204.92,23.83707163]
[1736279064865,20.12549,205.02,204.92,23.83707163]
[1736279065052,20.12549,205.02,204.92,0.73167587]
[1736279065649,20.12549,205.02,204.91,23.10539576]
[1736279066080,0.12549,205.0,204.89,23.10539576]
[1736279066375,0.12549,205.0,204.9,23.10539576]
[1736279066543,0.12549,205.0,204.91,23.10539576]
[1736279066743,20.0,205.02,204.92,23.83709252]
[1736279066969,20.0,205.02,204.93,23.10539576]
[1736279067156,0.12549,205.01,204.92,23.83709252]
[1736279067553,0.12549,205.01,204.95,23.10539576]
[1736279067763,1.953379,205.12,205.0,23.10539576]
[1736279067953,1.953379,205.12,205.01,23.10539576]
[1736279068154,0.9096,205.15,205.02,23.10539576]
[1736279068453,24.36627603,205.14,205.01,23.10539576]
[1736279068658,20.46390203,205.14,205.02,23.10539576]
[1736279068860,20.0,205.14,205.04,23.10539576]
[1736279069068,0.12549,205.14,205.04,23.10539576]
[1736279069268,0.12549,205.14,205.04,23.83666343]
[1736279069576,0.9096,205.15,205.04,23.83666343]
[1736279069953,0.12549,205.14,205.04,23.10539576]
[1736279070375,0.58939203,205.14,205.0,23.10539576]
[1736279070581,0.12549,205.13,205.0,23.10539576]
[1736279070746,0.12549,205.13,204.94,6.6311]
[1736279070747,0.12549,205.13,205.02,23.10539576]
[1736279071574,0.12549,205.1,205.0,23.10539576]
[1736279071756,0.12549,205.1,205.01,23.10539576]
[1736279072647,24.36627603,205.1,204.97,23.10539576]
[1736279072876,24.36627603,205.1,204.95,23.83678519]
[1736279073175,24.36627603,205.1,204.95,23.10539576]
[1736279073478,24.36627603,205.1,204.94,29.73649576]
[1736279073681,24.36627603,205.1,204.94,6.6311]
[1736279073861,24.36627603,205.1,204.95,23.10539576]
[1736279074483,24.36627603,205.1,204.94,29.73649576]
[1736279075988,0.12549,205.02,204.89,23.10539576]
[1736279076172,0.58939203,205.02,204.89,23.10539576]
[1736279076355,0.58939203,205.02,204.92,23.10539576]
[1736279076561,0.12549,205.02,204.94,23.10539576]
[1736279076955,0.12549,205.02,204.88,6.3875]
[1736279076956,0.58939203,205.02,204.88,6.3875]
[1736279077162,1.49899203,205.02,204.9,23.10539576]
[1736279077463,1.49899203,205.02,204.91,23.10539576]
[1736279077662,1.49899203,205.02,204.88,29.49289576]
[1736279078079,1.49899203,205.02,204.89,23.10539576]
[1736279078271,1.49899203,205.02,204.88,29.49289576]
[1736279078466,0.12549,204.97,204.88,6.3875]
[1736279078672,0.12549,204.97,204.87,24.72329576]
[1736279078885,0.12549,204.97,204.87,25.45514589]
[1736279079084,0.9096,205.02,204.9,23.10539576]
[1736279079900,0.12549,205.01,204.9,23.10539576]
[1736279081112,0.12549,205.01,204.87,25.45514589]
[1736279081113,0.58939203,205.01,204.87,25.45514589]
[1736279081310,0.12549,204.97,204.85,23.10539576]
[1736279081478,0.58939203,204.97,204.83,23.83720441]
[1736279081890,0.58939203,204.97,204.84,23.10539576]
[1736279082098,0.58939203,204.97,204.85,23.8373457]
[1736279082289,0.58939203,204.97,204.85,0.73194994]
[1736279082794,0.12549,204.97,204.87,23.10539576]
[1736279083481,0.12549,204.97,204.9,23.10539576]
[1736279083881,0.9096,205.02,204.91,23.10539576]
[1736279084388,0.12549,205.01,204.91,23.10539576]
[1736279085126,0.12549,205.01,204.9,23.10539576]
[1736279085403,0.12549,204.96,204.85,0.73172149]
[1736279085599,0.58939203,204.96,204.84,23.10539576]
[1736279085904,0.12549,204.94,204.83,23.83736728]
[1736279086507,0.58939203,204.94,204.8,23.10539576]
[1736279087898,0.12549,204.94,204.85,23.10539576]
[1736279088096,7.50600942,205.02,204.98,30.0]
[1736279088308,7.50600942,205.02,205.0,23.10539576]
[1736279088828,7.50600942,205.02,204.96,0.73124534]
[1736279088829,23.776884,205.11,204.96,23.10539576]
[1736279089007,5.06,205.12,205.0,23.10539576]
[1736279089406,5.06,205.11,205.06,7.56436526]
[1736279089603,1.3733,205.13,205.05,7.56436526]
[1736279089815,5.06,205.1,205.05,7.56436526]
[1736279090026,20.0,205.06,205.05,7.56436526]
[1736279090343,20.0,205.06,205.0,7.56436526]
[1736279090623,20.0,205.02,204.98,7.56436526]
[1736279091137,20.0,205.02,204.95,7.56436526]
[1736279091803,20.0,205.02,204.92,37.14522448]
[1736279092329,20.0,205.02,204.93,37.14522448]
[1736279092717,20.0,205.02,204.92,37.14522448]
[1736279093230,20.0,205.02,204.93,37.14522448]
[1736279094012,25.06,205.02,204.92,37.14522448]
[1736279094431,25.06,205.02,204.91,37.14522448]
[1736279094842,25.06,205.02,204.92,37.14522448]
[1736279095831,23.776884,205.01,204.88,44.86982448]
[1736279096027,23.776884,205.01,204.88,7.7246]
[1736279096205,23.776884,205.01,204.86,37.14522448]
[1736279096623,23.776884,205.01,204.84,37.14522448]
[1736279096826,23.776884,205.01,204.89,37.14522448]
[1736279097032,23.776884,205.01,204.9,37.14522448]
[1736279097416,23.776884,205.01,204.87,37.14522448]
[1736279097603,23.776884,205.01,204.88,37.14522448]
[1736279097807,23.776884,205.01,204.89,37.14522448]
[1736279098043,23.776884,205.01,204.88,37.14522448]
[1736279098339,23.776884,205.01,204.87,37.14522448]
[1736279098515,5.06,205.0,204.87,37.14522448]
[1736279099346,5.06,205.0,204.89,37.14522448]
[1736279099505,20.0,204.97,204.89,37.14522448]
[1736279099705,20.0,204.97,204.88,37.14522448]
[1736279099920,23.776884,205.01,204.88,37.14522448]
[1736279100131,1.3733,205.02,204.93,37.14522448]
[1736279100337,4.8,205.0,204.93,37.14522448]
[1736279100534,20.0,204.99,204.93,37.14522448]
[1736279100723,20.0,204.99,204.92,37.14522448]
[1736279101107,20.0,204.99,204.89,37.14522448]
[1736279101307,20.0,204.99,204.92,37.14522448]
[1736279101511,20.0,204.99,204.94,37.14522448]
[1736279101817,4.82,205.09,204.98,37.14522448]
[1736279102020,4.82,205.09,204.99,37.14522448]
[1736279102224,4.82,205.08,204.96,37.14522448]
[1736279102433,4.82,205.08,204.98,37.14522448]
[1736279102639,1.3733,205.12,205.01,37.14522448]
[1736279103218,1.3733,205.12,205.02,37.14522448]
[1736279103520,1.3733,205.12,205.03,37.14522448]
[1736279103726,20.0,205.11,205.03,37.14522448]
[1736279104537,23.776884,205.1,204.94,44.70958974]
[1736279104754,23.776884,205.08,204.94,7.56436526]
[1736279104929,23.776884,205.08,204.91,37.14522448]
[1736279104930,23.776884,205.08,204.91,7.56436526]
[1736279105254,5.0,205.09,204.91,37.14522448]
[1736279105255,20.0,205.01,204.91,37.14522448]
[1736279105473,20.0,205.01,204.92,37.14522448]
[1736279106639,20.0,205.01,204.91,37.14522448]
[1736279106937,20.0,205.01,204.93,37.14522448]
[1736279107241,19.530708,205.08,204.99,37.14522448]
[1736279107426,5.0,205.18,204.99,37.14522448]
[1736279107750,23.776884,205.11,204.96,37.14522448]
[1736279108042,23.776884,205.11,204.97,37.14522448]
[1736279108545,23.776884,205.11,204.96,37.14522448]
[1736279108747,23.776884,205.11,204.99,37.14522448]
[1736279109044,23.776884,205.11,204.97,37.14522448]
[1736279109247,23.776884,205.11,204.98,37.14522448]
[1736279110530,23.776884,205.07,204.98,37.14522448]
[1736279110737,20.0,205.04,204.97,37.14522448]
[1736279111050,20.0,205.04,204.92,23.902374]
[1736279111051,20.0,205.04,204.92,37.14522448]
[1736279111353,20.0,205.02,204.89,37.14522448]
[1736279111650,20.0,205.03,204.89,37.14522448]
[1736279111826,1.3733,205.04,204.88,7.56436526]
[1736279111827,20.0,204.99,204.9,37.14522448]
[1736279112030,20.0,204.99,204.91,37.14522448]
[1736279112769,20.0,204.99,204.9,37.14522448]
[1736279113555,20.0,204.99,204.86,22.88343805]
[1736279113858,28.576884,205.02,204.86,22.88343805]
[1736279113859,20.0,204.95,204.86,22.88343805]
[1736279114052,20.0,204.95,204.91,22.88343805]
[1736279114257,4.8,205.02,204.92,22.88343805]
[1736279114641,4.8,205.02,204.9,22.88343805]
[1736279114844,4.8,205.02,204.92,22.88343805]
[1736279115555,4.8,205.02,204.91,22.88343805]
[1736279116139,4.8,205.02,204.89,22.88343805]
[1736279116338,4.8,205.02,204.87,22.88343805]
[1736279116739,4.8,205.02,204.89,22.88343805]
[1736279116944,4.8,205.02,204.9,22.88343805]
[1736279117148,4.8,205.02,204.88,22.88343805]
[1736279117662,4.8,205.02,204.92,22.88343805]
[1736279118053,4.8,205.02,204.93,22.88343805]
[1736279118054,20.0,205.0,204.93,22.88343805]
[1736279118342,1.3733,205.04,204.96,22.88343805]
[1736279118565,4.56,205.12,205.01,22.88343805]
[1736279118748,4.56,205.12,205.02,22.88343805]
[1736279118941,1.3733,205.13,205.05,22.88343805]
[1736279119142,1.3733,205.13,205.07,22.88343805]
[1736279119344,1.3733,205.13,205.01,0.73131486]
[1736279119345,1.3733,205.13,205.06,22.88343805]
[1736279119544,29.710184,205.18,205.07,22.88343805]
[1736279119943,20.0,205.15,205.05,22.88343805]
[1736279120345,5.9333,205.18,205.05,22.88343805]
[1736279120545,1.3733,205.18,205.07,22.88343805]
[1736279120964,1.3733,205.18,205.11,22.88343805]
[1736279121170,19.519088,205.21,205.12,22.88343805]
[1736279121356,1.3733,205.23,205.13,22.88343805]
[1736279121664,19.514077,205.26,205.15,37.10174442]
[1736279122363,23.776884,205.27,205.14,37.10174442]
[1736279122545,20.0,205.24,205.14,37.10174442]
[1736279122746,20.0,205.2,205.1,37.10174442]
[1736279122960,20.0,205.2,205.11,37.10174442]
[1736279124162,20.0,205.2,205.12,37.10174442]
[1736279124363,20.0,205.2,205.11,37.10174442]
[1736279124643,20.0,205.2,205.13,37.10174442]
[1736279124853,20.0,205.2,205.12,37.10174442]
[1736279125073,20.0,205.2,205.11,37.10174442]
[1736279125281,20.0,205.2,205.12,37.10174442]
[1736279125570,20.0,205.2,205.11,37.10174442]
[1736279125766,20.0,205.2,205.09,37.10174442]
[1736279125975,20.0,205.2,205.07,37.10174442]
[1736279126445,20.0,205.2,205.09,37.10174442]
[1736279126969,20.0,205.2,205.11,37.10174442]
[1736279128146,20.0,205.2,205.12,37.10174442]
[1736279129152,5.6733,205.28,205.15,37.10174442]
[1736279129565,23.776884,205.27,205.15,37.10174442]
[1736279131075,23.776884,205.27,205.14,37.10174442]
[1736279131273,23.776884,205.27,205.13,37.10174442]
[1736279131510,23.776884,205.25,205.09,37.10174442]
[1736279131807,23.776884,205.25,205.0,56.86090968]
[1736279131808,23.776884,205.23,205.07,37.10174442]
[1736279131962,23.776884,205.23,205.06,37.10174442]
[1736279132283,23.776884,205.21,205.06,37.10174442]
[1736279132489,23.776884,205.21,205.05,37.10174442]
[1736279132690,23.776884,205.17,205.05,37.10174442]
[1736279132870,20.0,205.14,205.05,37.10174442]
[1736279133872,20.0,205.14,205.06,37.10174442]
[1736279135177,1.3733,205.22,205.01,23.902374]
[1736279135382,1.3733,205.22,205.11,37.10174442]
[1736279135582,23.776884,205.21,205.11,37.10174442]
[1736279135788,20.0,205.18,205.11,37.10174442]
[1736279135988,20.0,205.18,205.09,37.10174442]
[1736279136180,23.776884,205.21,205.09,37.10174442]
[1736279136379,23.776884,205.21,205.08,37.10174442]
[1736279136693,20.0,205.18,205.09,37.10174442]
[1736279136994,20.0,205.18,205.08,37.10174442]
[1736279137186,20.0,205.18,205.1,37.10174442]
[1736279137697,20.0,205.18,205.12,37.10174442]
[1736279137902,23.776884,205.21,205.12,37.10174442]
[1736279138084,23.776884,205.21,205.11,37.10174442]
[1736279138488,1.3733,205.27,205.14,37.10174442]
[1736279138686,23.776884,205.26,205.15,37.10174442]
[1736279138887,20.0,205.23,205.14,37.10174442]
[1736279139086,20.0,205.23,205.13,37.10174442]
[1736279139894,20.0,205.23,205.14,37.10174442]
[1736279140612,20.0,205.23,205.07,0.73103598]
[1736279140613,1.3733,205.27,205.1,37.10174442]
[1736279140777,23.776884,205.26,205.12,37.10174442]
[1736279140979,23.776884,205.26,205.11,37.10174442]
[1736279141210,23.776884,205.26,205.12,37.10174442]
[1736279141409,23.776884,205.26,205.11,37.10174442]
[1736279141612,23.776884,205.26,205.1,22.8389403]
[1736279142106,23.776884,205.26,205.11,22.8389403]
[1736279142419,23.776884,205.26,205.12,22.8389403]
[1736279142908,23.776884,205.26,205.11,22.8389403]
[1736279143782,23.776884,205.26,205.12,22.8389403]
[1736279144031,23.776884,205.26,205.14,22.8389403]
[1736279144191,20.0,205.23,205.15,22.8389403]
[1736279144908,1.3733,205.33,205.21,22.8389403]
[1736279145217,1.3733,205.33,205.22,22.8389403]
[1736279145390,1.3733,205.33,205.23,22.8389403]
[1736279145576,1.3733,205.33,205.2,22.8389403]
[1736279147009,20.0,205.29,205.21,22.8389403]
[1736279147195,23.776884,205.32,205.21,22.8389403]
[1736279147386,23.776884,205.32,205.2,22.8389403]
[1736279147581,20.0,205.25,205.16,22.8389403]
[1736279148097,20.0,205.25,205.17,22.8389403]
[1736279148408,0.12549,205.24,205.17,22.8389403]
[1736279148604,0.12549,205.24,205.19,22.8389403]
[1736279148912,0.12549,205.24,205.17,22.8389403]
[1736279149106,0.12549,205.24,205.18,22.8389403]
[1736279149307,0.12549,205.24,205.19,22.8389403]
[1736279149779,1.3733,205.33,205.19,22.8389403]
[1736279150308,23.902374,205.32,205.14,22.8389403]
[1736279150531,23.776884,205.3,205.13,22.8389403]
[1736279150721,0.12549,205.29,205.12,22.8389403]
[1736279151030,0.12549,205.29,205.11,8.1213]
[1736279151031,0.12549,205.29,205.17,22.8389403]
[1736279151180,23.776884,205.31,205.16,22.8389403]
[1736279151490,1.3733,205.33,205.19,22.8389403]
[1736279151689,23.902374,205.32,205.19,22.8389403]
[1736279152816,23.902374,205.32,205.21,22.8389403]
[1736279152985,23.902374,205.32,205.2,22.8389403]
[1736279153189,23.902374,205.32,205.15,22.8389403]
[1736279153490,0.12549,205.2,205.11,30.9602403]
[1736279154114,0.12549,205.2,205.12,22.8389403]
[1736279154514,0.12549,205.2,205.14,22.8389403]
[1736279154710,0.12549,205.2,205.12,22.8389403]
[1736279155719,0.12549,205.2,205.09,22.8389403]
[1736279155897,0.12549,205.2,205.1,22.8389403]
[1736279156099,0.12549,205.2,205.11,22.8389403]
[1736279156323,0.12549,205.2,205.07,0.73105334]
[1736279156324,0.12549,205.16,205.1,22.8389403]
[1736279156504,0.12549,205.16,205.09,22.8389403]
[1736279156705,0.12549,205.16,205.1,22.8389403]
[1736279156918,0.12549,205.16,205.09,22.8389403]
[1736279157318,0.12549,205.16,205.08,22.8389403]
[1736279157627,0.12549,205.16,205.07,22.8389403]
[1736279157810,0.12549,205.16,205.06,8.224]
[1736279157811,0.12549,205.16,205.11,22.8389403]
[1736279158406,0.12549,205.16,205.12,22.8389403]
[1736279158801,4.08,205.25,205.12,22.8389403]
[1736279159023,23.902374,205.24,205.12,22.8389403]
[1736279159523,23.902374,205.24,205.11,22.8389403]
[1736279159734,23.902374,205.24,205.09,22.8389403]
[1736279159922,23.902374,205.24,205.11,22.8389403]
[1736279160115,23.902374,205.24,205.14,22.8389403]
[1736279160626,23.902374,205.24,205.16,22.8389403]
[1736279160807,52.10312539,205.27,205.12,22.8389403]
[1736279161014,23.902374,205.26,205.09,22.8389403]
[1736279161201,23.902374,205.26,205.12,22.8389403]
[1736279161398,23.902374,205.26,205.1,22.8389403]
[1736279161599,0.12549,205.26,205.11,22.8389403]
[1736279161801,0.12549,205.26,205.18,22.8389403]
[1736279162030,52.10312539,205.27,205.18,22.8389403]
[1736279162211,50.72982539,205.27,205.19,22.8389403]
[1736279162418,1.3733,205.32,205.21,22.8389403]
[1736279162621,1.3733,205.32,205.22,22.8389403]
[1736279162804,7.5836644,205.34,205.23,22.8389403]
[1736279163210,4.08,205.35,205.24,22.8389403]
[1736279163408,20.0,205.33,205.23,22.8389403]
[1736279163633,4.08,205.35,205.2,22.8389403]
[1736279163815,23.902374,205.34,205.22,22.8389403]
[1736279164012,0.12549,205.26,205.22,22.8389403]
[1736279164224,4.08,205.35,205.23,22.8389403]
[1736279164525,23.776884,205.3,205.19,22.8389403]
[1736279164735,0.12549,205.26,205.2,22.8389403]
[1736279165130,0.12549,205.26,205.19,22.8389403]
[1736279165434,0.12549,205.26,205.17,30.6175403]
[1736279165630,0.12549,205.26,205.11,0.7307438]
[1736279165631,25.275674,205.26,205.12,30.6194403]
[1736279165832,0.12549,205.22,205.1,22.8389403]
[1736279166042,0.12549,205.18,205.09,22.8389403]
[1736279166228,0.12549,205.18,205.07,30.6194403]
[1736279166417,0.12549,205.14,205.07,30.6194403]
[1736279166616,0.12549,205.14,205.09,22.8389403]
[1736279167018,0.12549,205.18,205.07,30.6194403]
[1736279167230,0.12549,205.18,205.08,22.8389403]
[1736279167733,0.12549,205.18,205.07,7.7805]
[1736279167939,0.12549,205.14,205.05,22.8389403]
[1736279168613,0.12549,205.14,205.06,22.8389403]
[1736279168811,0.12549,205.14,205.02,7.6061]
[1736279168812,0.12549,205.14,205.09,22.8389403]
[1736279169037,21.3733,205.2,205.1,22.8389403]
[1736279169641,43.902374,205.19,205.1,22.8389403]
[1736279170439,43.902374,205.19,205.09,22.8389403]
[1736279170738,0.12549,205.15,205.09,22.8389403]
[1736279171419,0.12549,205.12,205.07,22.8389403]
[1736279172036,0.12549,205.12,205.03,0.73131291]
[1736279172037,0.12549,205.11,205.03,22.8389403]
[1736279172219,0.12549,205.11,205.05,22.8389403]
[1736279172424,0.12549,205.11,205.08,22.8389403]
[1736279172640,0.12549,205.11,205.05,22.8389403]
[1736279172817,0.12549,205.11,205.06,22.8389403]
[1736279173027,0.12549,205.11,205.03,22.8389403]
[1736279173433,0.12549,205.11,205.05,23.902374]
[1736279173635,7.5836644,205.13,205.08,22.8389403]
[1736279174139,20.12549,205.12,205.03,22.8389403]
[1736279174309,20.12549,205.12,205.05,22.8389403]
[1736279174508,20.12549,205.12,205.06,22.8389403]
[1736279174509,27.7091544,205.12,205.06,22.8389403]
[1736279174929,27.7091544,205.12,205.02,8.33743278]
[1736279174930,27.7091544,205.12,205.04,22.8389403]
[1736279175140,0.12549,205.1,205.04,22.8389403]
[1736279175339,0.12549,205.1,205.02,30.4450403]
[1736279175543,0.12549,205.1,205.01,22.8389403]
[1736279175719,0.12549,205.1,205.02,22.8389403]